bitfinex-derivatives/quotes_BNBF0:USTF0_20250715
["timestamp","ask_amount","ask_price","bid_price","bid_amount"]
[1752555130710,0.98428435,681.43,680.99,0.25522833]
[1752555131912,0.98428435,681.46,680.99,0.25522833]
[1752555132111,0.25522833,682.12,680.99,0.25522833]
[1752555132112,0.98428435,681.48,680.99,0.25522833]
[1752555132811,0.98428435,681.47,680.99,0.25522833]
[1752555133613,0.98428435,681.46,680.99,0.25522833]
[1752555135613,0.98428435,681.47,680.99,0.25522833]
[1752555138415,0.98428435,681.46,680.99,0.25522833]
[1752555138716,0.98428435,681.47,680.99,0.25522833]
[1752555139418,0.98428435,681.48,680.99,0.25522833]
[1752555141426,0.98428435,681.49,680.99,0.25522833]
[1752555141721,0.98428435,681.48,680.99,0.25522833]
[1752555143627,0.98428435,681.51,680.99,0.25522833]
[1752555144322,0.98428435,681.53,680.99,0.25522833]
[1752555144522,0.25522833,682.12,680.99,0.25522833]
[1752555144523,0.98428435,681.54,680.99,0.25522833]
[1752555146227,0.98428435,681.53,680.99,0.25522833]
[1752555146928,0.98428435,681.52,680.99,0.25522833]
[1752555147730,0.98428435,681.51,680.99,0.25522833]
[1752555148233,0.98428435,681.56,681.0,0.97368364]
[1752555148835,0.98428435,681.57,681.0,0.97368364]
[1752555149630,0.98428435,681.6,681.03,0.97368364]
[1752555150429,0.98428435,681.61,681.02,0.97368364]
[1752555151233,0.25522833,682.12,680.99,0.25522833]
[1752555151234,0.98428435,681.63,681.03,0.97368364]
[1752555151530,0.98428435,681.61,681.04,0.97368364]
[1752555152034,0.98428435,681.62,681.05,0.97368364]
[1752555152232,0.98428435,681.63,681.04,0.97368364]
[1752555153933,0.98428435,681.68,681.01,0.97368364]
[1752555154231,0.98428435,681.69,681.01,0.97368364]
[1752555154434,0.98428435,681.68,681.0,0.97368364]
[1752555155232,0.98428435,681.68,680.99,1.22891197]
[1752555156835,0.25522833,682.12,680.99,1.22891197]
[1752555156836,0.98428435,681.75,681.06,0.97368364]
[1752555157233,0.98428435,681.76,681.05,0.97368364]
[1752555158333,0.98428435,681.77,681.04,0.97368364]
[1752555158737,0.98428435,681.76,681.04,0.97368364]
[1752555159233,0.98428435,681.77,681.03,0.97368364]
[1752555160238,1.31681616,681.95,681.03,0.97368364]
[1752555160239,0.98428435,681.78,681.03,0.97368364]
[1752555161235,0.98428435,681.78,681.02,0.97368364]
[1752555162342,0.98428435,681.79,681.02,0.97368364]
[1752555163342,0.98428435,681.79,680.99,0.25522833]
[1752555163343,0.98428435,681.79,681.01,0.97368364]
[1752555163845,0.98428435,681.73,681.05,0.97368364]
[1752555165247,0.98428435,681.74,681.04,0.97368364]
[1752555166046,0.98428435,681.72,681.06,0.97368364]
[1752555166245,0.98428435,681.72,681.05,0.97368364]
[1752555166541,0.98428435,681.7,681.06,0.97368364]
[1752555167254,0.98428435,681.71,681.06,0.97368364]
[1752555167446,0.98428435,681.75,681.03,0.97368364]
[1752555168746,0.98428435,681.76,681.03,0.97368364]
[1752555169140,0.98428435,681.76,681.02,0.97368364]
[1752555172453,0.98428435,681.76,681.01,0.97368364]
[1752555173150,1.31681616,681.91,681.01,0.97368364]
[1752555173151,0.98428435,681.77,681.01,0.97368364]
[1752555175752,0.98428435,681.8,681.04,0.97368364]
[1752555175952,0.98428435,681.81,681.03,0.97368364]
[1752555177159,0.98428435,681.79,681.04,0.97368364]
[1752555177353,0.25522833,682.12,681.04,0.97368364]
[1752555177354,0.98428435,681.8,681.04,0.97368364]
[1752555183258,0.98428435,681.8,681.05,0.97368364]
[1752555184961,0.98428435,681.79,681.05,0.97368364]
[1752555185862,0.98428435,681.79,681.06,0.97368364]
[1752555186264,0.98428435,681.78,681.06,0.97368364]
[1752555187263,0.98428435,681.75,681.08,0.97368364]
[1752555188059,0.98428435,681.75,681.07,0.97368364]
[1752555188264,0.98428435,681.76,681.08,0.97368364]
[1752555189364,0.98428435,681.75,681.09,0.97368364]
[1752555190269,0.98428435,681.77,681.09,0.97368364]
[1752555191270,0.98428435,681.81,681.07,0.97368364]
[1752555194274,0.98428435,681.81,681.08,0.97368364]
[1752555195776,0.98428435,681.82,681.07,0.97368364]
[1752555198179,0.98428435,681.87,681.13,0.97368364]
[1752555200476,0.98428435,681.86,681.14,0.97368364]
[1752555200882,0.98428435,681.86,681.13,0.97368364]
[1752555201083,0.98428435,681.84,681.15,0.97368364]
[1752555202279,0.98428435,681.83,681.15,0.97368364]
[1752555203383,0.98428435,681.85,681.12,0.2552405]
[1752555204489,0.98428435,681.86,681.12,0.2552405]
[1752555205281,0.98428435,681.86,681.12,1.22892414]
[1752555205584,0.98428435,681.85,681.12,1.22892414]
[1752555206285,0.98428435,681.88,681.16,0.97368364]
[1752555208385,0.98428435,681.88,681.12,0.2552405]
[1752555208386,0.98428435,681.86,681.18,0.97368364]
[1752555208582,0.98428435,681.87,681.18,0.97368364]
[1752555209187,0.98428435,681.89,681.2,0.97368364]
[1752555209792,0.98428435,681.94,681.26,0.97368364]
[1752555210288,0.98428435,681.95,681.25,0.97368364]
[1752555210585,0.98428435,681.94,681.25,0.97368364]
[1752555211088,0.98428435,681.95,681.25,0.97368364]
[1752555211788,0.98428435,681.94,681.26,0.97368364]
[1752555212185,0.98428435,681.94,681.25,0.97368364]
[1752555216189,0.98428435,681.95,681.24,0.97368364]
[1752555216394,0.98428435,681.94,681.25,0.97368364]
[1752555217891,0.98428435,681.95,681.25,0.97368364]
[1752555218095,0.98428435,681.93,681.26,0.97368364]
[1752555218293,0.98428435,681.93,681.27,0.97368364]
[1752555218492,0.98428435,681.94,681.27,0.97368364]
[1752555218691,0.98428435,681.93,681.26,0.97368364]
[1752555219395,0.98428435,681.93,681.27,0.97368364]
[1752555220196,0.98428435,681.94,681.26,0.97368364]
[1752555220795,0.98428435,681.92,681.27,0.97368364]
[1752555222098,0.98428435,681.93,681.27,0.97368364]
[1752555222297,0.98428435,682.14,681.13,0.97368364]
[1752555223394,0.98428435,682.13,681.13,0.97368364]
[1752555224200,0.98428435,682.14,681.14,0.97368364]
[1752555224601,0.98428435,682.13,681.13,0.97368364]
[1752555225096,0.98428435,682.14,681.13,0.97368364]
[1752555225301,0.98428435,682.13,681.13,0.97368364]
[1752555225611,0.98428435,682.15,681.15,0.97368364]
[1752555225901,0.98428435,682.16,681.15,0.97368364]
[1752555226503,0.98428435,682.15,681.15,0.97368364]
[1752555227104,0.98428435,682.17,681.16,0.97368364]
[1752555227303,0.98428435,682.17,681.17,0.97368364]
[1752555227605,0.98428435,682.23,681.23,0.97368364]
[1752555227802,0.98428435,682.26,681.26,0.97368364]
[1752555228004,0.98428435,682.3,681.31,0.97368364]
[1752555228300,0.98428435,682.29,681.31,0.97368364]
[1752555229201,0.98428435,682.3,681.3,0.97368364]
[1752555229811,0.98428435,682.24,681.34,0.97368364]
[1752555230306,0.98428435,682.18,681.37,0.97368364]
[1752555230706,0.98428435,682.24,681.43,0.97368364]
[1752555230915,0.98428435,682.25,681.44,0.97368364]
[1752555231106,0.98428435,682.26,681.42,0.97368364]
[1752555232103,0.98428435,682.27,681.41,0.97368364]
[1752555232303,0.98428435,682.25,681.42,0.97368364]
[1752555233014,0.98428435,682.27,681.41,0.97368364]
[1752555233409,0.98428435,682.31,681.46,0.97368364]
[1752555233705,0.98428435,682.36,681.5,0.97368364]
[1752555234308,0.98428435,682.41,681.47,0.97368364]
[1752555235208,0.98428435,682.41,681.3,1.30783974]
[1752555235209,0.98428435,682.42,681.45,0.97368364]
[1752555236106,0.98428435,682.42,681.43,0.97368364]
[1752555236311,0.25507493,682.62,681.44,0.97368364]
[1752555236606,0.25507493,682.62,681.39,0.97368364]
[1752555237109,0.25507493,682.62,681.37,0.97368364]
[1752555238210,0.25507493,682.62,681.35,0.97368364]
[1752555239210,0.25507493,682.62,681.34,0.97368364]
[1752555240511,0.25507493,682.62,681.35,0.97368364]
[1752555240713,0.25507493,682.62,681.12,0.2552405]
[1752555240714,1.23935928,682.62,681.37,0.97368364]
[1752555240915,0.98428435,682.5,681.45,0.97368364]
[1752555241315,0.98428435,682.51,681.44,0.97368364]
[1752555241815,0.98428435,682.52,681.44,0.97368364]
[1752555242114,0.98428435,682.55,681.47,0.97368364]
[1752555242314,0.98428435,682.6,681.48,0.97368364]
[1752555242516,0.98428435,682.61,681.49,0.97368364]
[1752555243414,0.98428435,682.62,681.47,0.97368364]
[1752555244318,0.98428435,682.64,681.47,0.97368364]
[1752555245022,0.98428435,682.62,681.48,0.97368364]
[1752555245522,0.98428435,682.63,681.46,0.97368364]
[1752555246422,0.98428435,682.64,681.45,0.97368364]
[1752555247122,0.98428435,682.63,681.45,0.97368364]
[1752555247418,0.98428435,682.64,681.44,0.97368364]
[1752555247622,0.98428435,682.63,681.45,0.97368364]
[1752555248323,0.98428435,682.63,681.44,0.97368364]
[1752555248719,0.98428435,682.73,681.37,0.97368364]
[1752555248918,0.98428435,682.84,681.47,0.97368364]
[1752555249223,0.98428435,682.83,681.47,0.97368364]
[1752555249424,1.23927891,682.84,681.46,0.97368364]
[1752555249724,0.25499456,682.84,681.42,0.97368364]
[1752555250520,0.25499456,682.84,681.41,0.97368364]
[1752555251319,0.25499456,682.84,681.4,0.97368364]
[1752555252424,0.25499456,682.84,681.39,0.97368364]
[1752555253420,0.25499456,682.84,681.41,0.97368364]
[1752555254423,0.25499456,682.84,681.37,0.97368364]
[1752555254620,0.25499456,682.84,681.4,0.97368364]
[1752555254822,0.25499456,682.84,681.47,0.97368364]
[1752555255026,0.98428435,682.8,681.46,0.97368364]
[1752555255422,0.98428435,682.81,681.45,0.97368364]
[1752555255625,0.98428435,682.81,681.46,0.97368364]
[1752555256527,0.98428435,682.81,681.45,0.97368364]
[1752555257121,0.98428435,682.81,681.46,0.97368364]
[1752555257324,0.98428435,682.81,681.28,1.30783974]
[1752555257325,0.98428435,682.81,681.45,0.97368364]
[1752555258323,0.98428435,682.82,681.45,0.97368364]
[1752555258923,0.98428435,682.79,681.47,0.97368364]
[1752555259226,0.98428435,682.78,681.47,0.97368364]
[1752555259426,0.98428435,682.79,681.47,0.97368364]
[1752555259927,0.98428435,682.8,681.46,0.97368364]
[1752555260124,0.25499456,682.84,681.35,0.97368364]
[1752555260625,0.25499456,682.84,681.3,0.96223971]
[1752555262030,0.25499456,682.84,681.29,0.96223971]
[1752555262231,0.25499456,682.84,681.23,0.96223971]
[1752555262432,0.25499456,682.84,681.21,0.96223971]
[1752555262729,0.25499456,682.84,681.3,0.96223971]
[1752555263832,0.25499456,682.84,681.27,0.96223971]
[1752555264132,0.25499456,682.84,681.28,0.96223971]
[1752555264333,0.25499456,682.84,681.29,0.96223971]
[1752555264839,0.25499456,682.84,681.3,0.96223971]
[1752555265033,0.25499456,682.84,681.32,0.96223971]
[1752555266237,0.25499456,682.84,681.33,0.96223971]
[1752555266638,0.25499456,682.84,681.34,0.96223971]
[1752555267336,0.25499456,682.84,681.35,0.96223971]
[1752555269140,0.25499456,682.84,681.36,0.96223971]
[1752555269341,0.25499456,682.84,681.38,0.96223971]
[1752555269736,1.23171864,682.84,681.41,0.96223971]
[1752555270441,0.97672408,682.8,681.44,0.96223971]
[1752555270640,0.97672408,682.79,681.44,0.96223971]
[1752555271039,0.97672408,682.76,681.46,0.96223971]
[1752555271243,0.97672408,682.76,681.47,0.96223971]
[1752555271439,0.97672408,682.82,681.51,0.96223971]
[1752555272245,0.97672408,682.82,681.52,0.96223971]
[1752555272541,0.97672408,682.82,681.51,0.96223971]
[1752555273144,0.97672408,682.82,681.52,0.96223971]
[1752555274139,0.97672408,682.81,681.53,0.96223971]
[1752555274345,1.23171864,682.84,681.55,0.96223971]
[1752555274542,1.23171864,682.84,681.56,0.96223971]
[1752555275245,0.97672408,682.84,681.56,0.96223971]
[1752555275445,0.97672408,682.84,681.21,1.96175962]
[1752555275446,0.97672408,683.03,681.44,0.96223971]
[1752555275647,0.25494505,682.96,681.56,0.96223971]
[1752555276146,0.25494505,682.96,681.6,0.96223971]
[1752555276647,0.25494505,682.96,681.61,0.96223971]
[1752555277742,0.25494505,682.96,681.62,0.96223971]
[1752555278243,0.25494505,682.96,681.63,0.96223971]
[1752555278455,0.25494505,682.96,681.65,0.96223971]
[1752555279148,0.25494505,682.96,681.12,0.2552405]
[1752555279149,0.25494505,682.96,681.66,0.96223971]
[1752555279746,0.25494505,682.96,681.64,0.96223971]
[1752555280144,0.25494505,682.96,681.65,0.96223971]
[1752555281148,0.25494505,682.96,681.43,1.30783974]
[1752555281149,0.25494505,682.96,681.67,0.96223971]
[1752555282146,0.25494505,682.96,681.68,0.96223971]
[1752555282451,0.25494505,682.96,681.66,0.96223971]
[1752555282847,0.25494505,682.96,681.67,0.96223971]
[1752555283250,0.25494505,682.96,681.68,0.96223971]
[1752555284252,0.25494505,682.96,681.12,0.2552405]
[1752555284253,0.25494505,682.96,681.67,0.96223971]
[1752555285150,0.25494505,682.96,681.44,1.30783974]
[1752555285151,1.23166913,682.96,681.7,0.96223971]
[1752555285347,1.23166913,682.96,681.69,0.96223971]
[1752555286152,0.97672408,682.94,681.72,0.96223971]
[1752555286453,0.97672408,682.93,681.73,0.96223971]
[1752555287154,0.97672408,682.92,681.76,0.96223971]
[1752555287354,0.97672408,682.92,681.75,0.96223971]
[1752555288156,0.97672408,682.91,681.76,0.96223971]
[1752555288756,0.97672408,682.9,681.76,0.96223971]
[1752555289160,0.97672408,682.89,681.78,0.96223971]
[1752555289457,0.97672408,682.86,681.8,0.96223971]
[1752555289955,0.97672408,682.87,681.79,0.96223971]
[1752555290257,0.25494505,682.96,681.12,0.2552405]
[1752555290258,0.97672408,682.86,681.81,0.96223971]
[1752555291257,0.97672408,682.86,681.61,1.30783974]
[1752555291258,0.97672408,682.85,681.82,0.96223971]
[1752555291458,0.97672408,682.86,681.82,0.96223971]
[1752555291957,0.97672408,682.87,681.81,0.96223971]
[1752555292158,0.97672408,682.89,681.81,0.96223971]
[1752555292358,0.97672408,682.88,681.82,0.96223971]
[1752555292853,0.97672408,682.87,681.82,0.96223971]
[1752555293258,0.97672408,682.86,681.84,0.96223971]
[1752555294263,0.97672408,682.86,681.85,0.96223971]
[1752555294766,0.97672408,682.85,681.85,0.96223971]
[1752555295266,0.97672408,682.85,681.86,0.96223971]
[1752555296265,0.97672408,682.84,681.87,0.96223971]
[1752555297267,0.97672408,682.84,681.88,0.96223971]
[1752555297765,0.97672408,682.89,681.84,0.96223971]
[1752555297966,0.97672408,682.88,681.85,0.96223971]
[1752555298263,0.97672408,682.88,681.86,0.96223971]
[1752555298464,0.97672408,682.89,681.85,0.96223971]
[1752555299262,0.97672408,682.9,681.84,0.96223971]
[1752555300269,0.97672408,682.9,681.85,0.96223971]
[1752555301570,0.97672408,682.89,681.85,0.96223971]
[1752555301869,0.97672408,682.88,681.87,0.96223971]
[1752555302070,0.97672408,682.88,681.86,0.96223971]
[1752555302370,0.97672408,682.88,681.87,0.96223971]
[1752555303365,0.97672408,682.88,681.12,0.2552405]
[1752555303366,0.97672408,682.87,681.88,0.96223971]
[1752555306668,0.97672408,682.87,681.89,0.96223971]
[1752555307270,0.97672408,682.86,681.89,0.96223971]
[1752555307674,0.97672408,682.83,681.91,0.96223971]
[1752555307874,0.97672408,682.82,681.92,0.96223971]
[1752555308374,0.97672408,682.85,681.9,0.96223971]
[1752555308571,0.97672408,682.85,681.66,1.30783974]
[1752555308572,0.97672408,682.88,681.94,0.96223971]
[1752555308874,0.97672408,682.88,681.95,0.96223971]
[1752555310172,0.97672408,682.89,681.94,0.96223971]
[1752555310678,0.97672408,682.86,681.92,0.96223971]
[1752555310880,0.97672408,682.87,681.91,0.96223971]
[1752555311176,0.97672408,682.77,681.92,0.96223971]
[1752555311376,0.97672408,682.74,681.91,0.96223971]
[1752555311579,0.97672408,682.72,681.89,0.96223971]
[1752555311779,0.97672408,682.73,681.9,0.96223971]
[1752555312074,0.25494505,682.96,681.89,0.96223971]
[1752555312075,0.97672408,682.72,681.89,0.96223971]
[1752555313077,0.97672408,682.72,681.9,0.96223971]
[1752555315378,0.97672408,682.73,681.93,0.96223971]
[1752555315582,0.97672408,682.73,681.94,0.96223971]
[1752555315883,0.97672408,682.73,681.93,0.96223971]
[1752555316182,0.97672408,682.73,681.94,0.96223971]
[1752555316382,0.97672408,682.73,681.93,0.96223971]
[1752555317281,0.97672408,682.72,681.93,0.96223971]
[1752555318384,0.98547022,682.72,681.93,0.96922061]
[1752555319282,0.98547022,682.62,681.89,0.96922061]
[1752555319487,0.98547022,682.62,681.88,0.96922061]
[1752555319782,0.98547022,682.66,681.85,0.96922061]
[1752555320986,0.98547022,682.68,681.84,0.96922061]
[1752555321186,0.98547022,682.67,681.84,0.96922061]
[1752555321986,0.98547022,682.65,681.82,0.96922061]
[1752555322287,0.98547022,682.65,681.83,0.96922061]
[1752555322486,0.98547022,682.64,681.82,0.96922061]
[1752555322887,0.98547022,682.65,681.82,0.96922061]
[1752555323087,0.98547022,682.63,681.8,0.96922061]
[1752555323488,0.98547022,682.63,681.79,0.96922061]
[1752555324389,0.98547022,682.65,681.82,0.96922061]
[1752555324994,0.98547022,682.66,681.81,0.96922061]
[1752555325694,0.98547022,682.65,681.81,0.96922061]
[1752555326494,0.98547022,682.65,681.82,0.96922061]
[1752555327091,1.31681616,682.86,681.82,0.96922061]
[1752555327092,0.98547022,682.66,681.82,0.96922061]
[1752555327298,0.98547022,682.65,681.82,0.96922061]
[1752555327796,0.98547022,682.66,681.82,0.96922061]
[1752555328000,0.98547022,682.65,681.82,0.96922061]
[1752555328194,0.98547022,682.66,681.82,0.96922061]
[1752555328403,0.98547022,682.65,681.82,0.96922061]
[1752555329194,0.98547022,682.65,681.61,1.30783974]
[1752555329195,0.98547022,682.68,681.8,0.96922061]
[1752555329698,0.25494505,682.96,681.81,0.96922061]
[1752555329699,0.98547022,682.66,681.81,0.96922061]
[1752555330094,0.98547022,682.67,681.81,0.96922061]
[1752555330800,0.98547022,682.65,681.82,0.96922061]
[1752555334304,0.98547022,682.63,681.8,0.96922061]
[1752555334702,0.98547022,682.62,681.81,0.96922061]
[1752555335399,0.98547022,682.61,681.81,0.96922061]
[1752555336699,0.98547022,682.61,681.8,0.96922061]
[1752555338804,0.98547022,682.59,681.78,0.96922061]
[1752555339301,0.98547022,682.56,681.8,0.96922061]
[1752555339504,0.98547022,682.55,681.79,0.96922061]
[1752555339705,0.98547022,682.54,681.79,0.96922061]
[1752555340205,0.98547022,682.55,681.79,0.96922061]
[1752555343703,0.98547022,682.59,681.76,0.96922061]
[1752555344409,0.98547022,682.58,681.77,0.96922061]
[1752555345211,0.98547022,682.59,681.77,0.96922061]
[1752555346610,0.98547022,682.59,681.79,0.96922061]
[1752555347206,0.98547022,682.62,681.77,0.96922061]
[1752555348310,0.98547022,682.63,681.77,0.96922061]
[1752555349109,0.98547022,682.67,681.81,0.96922061]
[1752555349310,0.98547022,682.66,681.81,0.96922061]
[1752555353611,0.98547022,682.64,681.82,0.96922061]
[1752555354310,0.98547022,682.64,681.83,0.96922061]
[1752555355112,0.98547022,682.63,681.83,0.96922061]
[1752555355515,0.98547022,682.64,681.83,0.96922061]
[1752555357219,0.98547022,682.61,681.85,0.96922061]
[1752555357818,0.98547022,682.62,681.84,0.96922061]
[1752555358114,0.98547022,682.63,681.83,0.96922061]
[1752555358418,0.98547022,682.56,681.76,0.96922061]
[1752555358915,0.98547022,682.55,681.76,0.96922061]
[1752555359116,0.98547022,682.56,681.76,0.96922061]
[1752555359519,0.98547022,682.68,681.68,0.96922061]
[1752555360115,0.98547022,682.79,681.78,0.96922061]
[1752555360319,0.98547022,682.75,681.8,0.96922061]
[1752555360620,0.98547022,682.73,681.82,0.96922061]
[1752555360916,0.98547022,682.72,681.82,0.96922061]
[1752555361116,0.98547022,682.72,681.6,1.30783974]
[1752555361117,0.98547022,682.69,681.79,0.96922061]
[1752555361315,0.98547022,682.68,681.79,0.96922061]
[1752555361514,0.98547022,682.7,681.77,0.96922061]
[1752555362121,0.98547022,682.69,681.78,0.96922061]
[1752555363022,0.98547022,682.68,681.79,0.96922061]
[1752555363818,0.98547022,682.68,681.78,0.96922061]
[1752555364121,0.98547022,682.68,681.79,0.96922061]
[1752555364318,0.25494505,682.96,681.79,0.96922061]
[1752555364319,0.98547022,682.69,681.79,0.96922061]
[1752555365124,0.98547022,682.69,681.8,0.96922061]
[1752555365424,0.98547022,682.69,681.79,0.96922061]
[1752555365823,0.98547022,682.7,681.79,0.96922061]
[1752555366422,0.98547022,682.71,681.78,0.96922061]
[1752555366619,0.98547022,682.73,681.77,0.96922061]
[1752555367122,0.98547022,682.72,681.78,0.96922061]
[1752555369130,0.98547022,682.71,681.79,0.96922061]
[1752555370030,0.98547022,682.7,681.8,0.96922061]
[1752555370730,0.98547022,682.69,681.8,0.96922061]
[1752555370929,0.98547022,682.69,681.81,0.96922061]
[1752555371534,0.98547022,682.67,681.82,0.96922061]
[1752555372234,0.98547022,682.67,681.83,0.96922061]
[1752555373131,0.98547022,682.66,681.83,0.96922061]
[1752555373732,0.98547022,682.65,681.84,0.96922061]
[1752555374134,0.98547022,682.64,681.84,0.96922061]
[1752555375131,0.98547022,682.63,681.84,0.96922061]
[1752555375632,0.98547022,682.61,681.86,0.96922061]
[1752555376234,0.98547022,682.6,681.86,0.96922061]
[1752555376431,0.98547022,682.58,681.88,0.96922061]
[1752555376635,1.31681616,682.78,681.12,0.2552405]
[1752555376636,0.98547022,682.53,681.91,0.96922061]
[1752555377338,0.98547022,682.53,681.92,0.96922061]
[1752555378237,0.98547022,682.52,681.93,0.96922061]
[1752555379135,0.98547022,682.51,681.94,0.96922061]
[1752555379539,0.98547022,682.5,681.94,0.96922061]
[1752555383740,0.98547022,682.54,681.92,0.96922061]
[1752555384142,0.98547022,682.52,681.94,0.96922061]
[1752555384737,0.98547022,682.52,681.95,0.96922061]
[1752555385139,0.98547022,682.54,681.93,0.96922061]
[1752555385344,0.98547022,682.55,681.94,0.96922061]
[1752555385540,0.98547022,682.68,682.05,0.96922061]
[1752555386242,0.98547022,682.69,682.04,0.96922061]
[1752555387344,0.98547022,682.69,682.03,0.96922061]
[1752555387842,0.98547022,682.7,682.04,0.96922061]
[1752555388244,0.98547022,682.71,682.03,0.96922061]
[1752555389141,0.98547022,682.72,682.02,0.96922061]
[1752555390242,0.98547022,682.73,682.02,0.96922061]
[1752555391146,0.98547022,682.73,682.01,0.96922061]
[1752555392241,0.98547022,682.74,682.01,0.96922061]
[1752555393246,0.98547022,682.74,682.0,0.96922061]
[1752555393542,0.98547022,682.73,682.0,0.96922061]
[1752555393847,0.98547022,682.73,682.01,0.96922061]
[1752555394046,0.98547022,682.71,682.02,0.96922061]
[1752555394344,0.98547022,682.72,682.02,0.96922061]
[1752555395144,0.25494505,682.96,682.03,0.96922061]
[1752555395145,0.98547022,682.7,682.03,0.96922061]
[1752555395444,0.98547022,682.66,682.05,0.96922061]
[1752555396247,0.98547022,682.66,682.06,0.96922061]
[1752555397145,0.98547022,682.66,682.05,0.96922061]
[1752555397746,0.98547022,682.66,682.06,0.96922061]
[1752555398146,0.98547022,682.67,682.05,0.96922061]
[1752555398451,0.98547022,682.66,682.06,0.96922061]
[1752555402456,0.98547022,682.66,682.05,0.96922061]
[1752555402756,0.98547022,682.73,682.01,0.96922061]
[1752555403356,0.98547022,682.73,682.0,0.96922061]
[1752555403858,0.98547022,682.72,681.99,0.96922061]
[1752555404154,0.98547022,682.72,681.98,0.96922061]
[1752555404357,0.98547022,682.72,681.99,0.96922061]
[1752555404857,0.25494505,682.96,681.55,0.25491611]
[1752555404858,0.98547022,682.7,681.97,0.96922061]
[1752555405455,0.98547022,682.68,681.95,0.96922061]
[1752555405660,0.98547022,682.61,681.92,0.96922061]
[1752555405958,0.98547022,682.62,681.92,0.96922061]
[1752555406158,0.98547022,682.61,681.92,0.96922061]
[1752555406356,0.98547022,682.6,681.91,0.96922061]
[1752555406754,0.98547022,682.62,681.86,0.96922061]
[1752555407057,0.98547022,682.62,681.87,0.96922061]
[1752555407757,0.98547022,682.62,681.86,0.96922061]
[1752555407956,0.98547022,682.62,681.87,0.96922061]
[1752555414364,0.98547022,682.63,681.87,0.96922061]
[1752555414564,0.98547022,682.63,681.88,0.96922061]
[1752555415462,0.98547022,682.62,681.89,0.96922061]
[1752555416159,0.98547022,682.61,681.89,0.96922061]
[1752555416765,0.98547022,682.55,681.93,0.96922061]
[1752555419064,0.98547022,682.54,681.94,0.96922061]
[1752555419366,0.98547022,682.57,681.92,0.96922061]
[1752555419562,0.98547022,682.57,681.91,0.96922061]
[1752555420269,0.98547022,682.58,681.91,0.96922061]
[1752555420863,0.98547022,682.58,681.92,0.96922061]
[1752555422366,0.98547022,682.6,681.9,0.96922061]
[1752555424368,0.98547022,682.59,681.89,0.96922061]
[1752555429284,0.98547022,682.59,681.9,0.96922061]
[1752555429583,0.98547022,682.58,681.9,0.96922061]
[1752555431882,0.98547022,682.57,681.91,0.96922061]
[1752555432386,0.98547022,682.54,681.93,0.96922061]
[1752555436588,0.98547022,682.53,681.94,0.96922061]
[1752555438588,0.98547022,682.52,681.94,0.96922061]
[1752555439187,0.98547022,682.53,681.94,0.96922061]
[1752555439385,0.98547022,682.52,681.94,0.96922061]
[1752555440187,0.98547022,682.53,681.94,0.96922061]
[1752555440488,0.98547022,682.52,681.94,0.96922061]
[1752555440988,0.98547022,682.51,681.95,0.96922061]
[1752555444392,0.98547022,682.5,681.96,0.96922061]
[1752555446689,0.98547022,682.5,681.95,0.96922061]
[1752555447291,0.98547022,682.52,681.94,0.96922061]
[1752555447793,0.98547022,682.51,681.93,0.96922061]
[1752555449094,0.98547022,682.51,681.81,1.30783974]
[1752555449095,0.98547022,682.58,681.89,0.96922061]
[1752555451096,0.98547022,682.57,681.89,0.96922061]
[1752555451596,0.98547022,682.57,681.9,0.96922061]
[1752555453097,0.98547022,682.63,681.86,0.96922061]
[1752555454398,0.98547022,682.63,681.87,0.96922061]
[1752555456096,0.98547022,682.62,681.87,0.96922061]
[1752555457098,0.98547022,682.62,681.88,0.96922061]
[1752555457294,0.98547022,682.62,681.87,0.96922061]
[1752555457497,0.98547022,682.62,681.88,0.96922061]
[1752555458899,0.98547022,682.6,681.89,0.96922061]
[1752555460102,0.98547022,682.6,681.9,0.96922061]
[1752555461303,0.98547022,682.59,681.9,0.96922061]
[1752555462105,0.98547022,682.58,681.91,0.96922061]
[1752555462905,0.98547022,682.52,681.95,0.96922061]
[1752555463100,0.98547022,682.52,681.96,0.96922061]
[1752555463502,0.98547022,682.51,681.96,0.96922061]
[1752555464205,0.98547022,682.5,681.97,0.96922061]
[1752555464402,0.98547022,682.51,681.98,0.96922061]
[1752555465201,0.98547022,682.5,681.99,0.96922061]
[1752555466302,0.98547022,682.49,682.0,0.96922061]
[1752555467205,0.98547022,682.5,681.99,0.96922061]
[1752555467906,0.98547022,682.51,681.99,0.96922061]
[1752555468502,0.25495813,682.85,681.75,0.25495813]
[1752555468503,0.98547022,682.53,682.01,0.96922061]
[1752555469105,0.98547022,682.51,682.03,0.96922061]
[1752555469704,1.97522424,682.81,682.03,0.96922061]
[1752555469705,0.98547022,682.5,682.03,0.96922061]
[1752555473405,0.98547022,682.56,681.99,0.96922061]
[1752555474412,0.98547022,682.55,681.98,0.96922061]
[1752555478116,0.98547022,682.54,681.98,0.96922061]
[1752555479117,0.98547022,682.54,681.99,0.96922061]
[1752555479413,0.98547022,682.54,681.98,0.96922061]
[1752555480217,0.98547022,682.54,681.99,0.96922061]
[1752555483313,0.98547022,682.49,682.02,0.96922061]
[1752555484717,0.98547022,682.5,682.02,0.96922061]
[1752555485715,0.98547022,682.49,682.02,0.96922061]
[1752555486118,0.98547022,682.5,682.01,0.96922061]
[1752555486419,0.98547022,682.49,682.02,0.96922061]
[1752555489519,1.31681616,682.64,682.02,0.96922061]